Cogmind - Beta 17 @@@ ROGUE MODE // 2026.08.13 @ 20:49:43 Player: GogoFox Result: Destroyed by S-27 Virus with Autogun Performance ------------- Evolutions (6) 3000 Regions Visited (5) 1000 Robots Destroyed (11) 55 Value Destroyed (429) 429 Prototype IDs (14) 280 Alien Tech Used (0) 0 Bonus (800) 800 TOTAL SCORE: 5564 Bonus ------- Registered with UFD 300 Met Optimus in HQ 500 Cogmind --------- Core Integrity 0/1150 Matter 110/300 Energy 96/100 System Corruption 3% Temperature Cool (0) Movement Core (50) Location -4/Factory Parts ------- > --- POWER (2) -------- (None) > --- PROPULSION (8) --- (None) > --- UTILITY (7) ------ Advanced Signal Interpreter > --- WEAPON (2) ------- (None) > --- INVENTORY (5) ---- Improved Treads Scrap Suit Scrapoid Pod Peak State ------------ > --- POWER ------------ Micro Nuclear Core Micro Fission Core > --- PROPULSION ------- Improved Treads Improved Treads Overtuned Titanium Leg Gyrokinetic Inverter Nuclear Pulse Thruster Impulse Thruster > --- UTILITY ---------- Small Storage Unit Advanced Sensor Array Experimental Terrain Scanner Advanced Targeting Computer Advanced Transmission Jammer Improved Reaction Control System Improved Focal Shield > --- WEAPON ----------- Hypervelocity Gauss Rifle Hypervelocity Coil Gun > --- INVENTORY -------- Scrap Suit Advanced ECM Suite Scrapoid Pod Grenade Launcher Mini Grenade Launcher [Rating: 84] Favorites ----------- Power Light Ion Engine Engine Light Ion Engine Power Core Micro Nuclear Core Propulsion Light Treads Treads Light Treads Leg Overtuned Titanium Leg Wheel Subdweller Monowheel Hover Unit Gyrokinetic Inverter Flight Unit Nuclear Pulse Thruster Utility Small Storage Unit Device Experimental Terrain Scanner Storage Small Storage Unit Processor Advanced Targeting Computer Protection Propulsion Shielding Weapon Gauss Rifle Energy Gun Plasma Rifle Ballistic Gun Gauss Rifle Launcher Grenade Launcher Special Weapon Junk Cannon Build | -11 -10 -10 -7 -5 -4 ------- Run | Yrd Mat Sub Scr Fac Fac Slots Evolved 12 | . . . . 10 2 Power 1 | . . . . 1 . Propulsion 6 | . . . . 6 . Utility 5 | . . . . 3 2 Weapon . | . . . . . . Parts Attached 49 | 6 2 1 16 9 15 Power 7 | 1 . 1 3 2 . Engine 4 | 1 . 1 2 . . Core 3 | . . . 1 2 . Reactor . | . . . . . . Propulsion 13 | 2 . . 5 2 4 Treads 4 | 2 . . . . 2 Leg 3 | . . . 3 . . Wheel 3 | . . . 2 . 1 Hover 1 | . . . . 1 . Flight 2 | . . . . 1 1 Utility 17 | 1 1 . 3 3 9 Device 12 | . . . 2 2 8 Storage 2 | 1 . . 1 . . Processor 2 | . . . . 1 1 Hackware . | . . . . . . Protection 1 | . 1 . . . . Artifact . | . . . . . . Weapon 12 | 2 1 . 5 2 2 Energy Gun 4 | 2 . . 2 . . Energy Cannon . | . . . . . . Ballistic Gun 5 | . 1 . 2 2 . Ballistic Cannon . | . . . . . . Launcher 2 | . . . . . 2 Special Weapon 1 | . . . 1 . . Impact Weapon . | . . . . . . Slashing Weapon . | . . . . . . Piercing Weapon . | . . . . . . Special Melee Weapon . | . . . . . . Unidentified Prototypes 2 | . . . 1 . 1 Parts Lost 23 | . . . 6 1 16 Power 4 | . . . 2 . 2 Propulsion 7 | . . . 2 1 4 Utility 10 | . . . 1 . 9 Weapon 2 | . . . 1 . 1 Highest Loss Streak 12 | . . . 4 1 12 To Critical Strikes . | . . . . . . Average Backups 7 | 1 5 6 8 7 4 Power . | . 1 1 . . . Propulsion . | . 2 2 . . . Utility 3 | . . 1 3 4 1 Weapon 1 | . 1 2 2 2 1 Tool/Special . | . . . . . . Unused Backups 18 | . . 2 9 5 2 Power 1 | . . 1 . . . Propulsion 3 | . . 1 2 . . Utility 11 | . . . 6 4 1 Weapon . | . . . . . . Tool/Special 3 | . . . 1 1 1 Average Slot Usage (%) 86 | . 95 100 96 49 60 Engine 10 | . 14 14 13 3 . Core 1 | . . . . 3 7 Treads 13 | . 28 28 16 . 2 Leg 2 | . . . 1 6 3 Wheel 6 | . . . 9 . . Device 6 | . . . 5 11 17 Storage 11 | . 14 14 14 5 3 Processor 1 | . . . . 4 4 Protection 6 | . 9 14 8 . . Energy Gun 8 | . 20 14 10 . . Ballistic Gun 12 | . 7 14 15 3 7 Peak Build Rating 84 | 6 7 9 32 59 84 Average Rating 24 | 4 6 8 15 47 60 On Entrance 18 | . 6 7 9 32 59 Avg Prop Armor Cover (%) 6 | . . . 10 3 5 Naked Turns 25 | . . . . . 25 Heaviest Build 44 | 11 13 15 40 44 38 Greatest Support 46 | 40 40 40 40 38 46 Greatest Overweight (x) 9 | . . . 9 2 5 Average Overweight (x) . | . . . . 1 . Largest Inventory Capacity 15 | 8 8 8 15 15 8 Average Capacity 9 | 7 8 8 9 10 7 Most Carried 15 | 4 6 8 15 13 8 Average Carried 8 | 1 5 7 8 9 6 Final Capacity 15 | 8 8 8 15 8 5 Final Carried 14 | 4 5 8 14 8 5 Scrap Suit Usage (%) 9 | . . . . 64 3 Class Distribution -------------------- 96% | Mutant 3% | Infiltrator-Mutant Dominant Class ---------------- Mutant | -10/Materials Mutant | -10/Subcaves Mutant | -7/Scraptown Mutant | -5/Factory Mutant | -4/Factory Resources | -11 -10 -10 -7 -5 -4 ----------- Run | Yrd Mat Sub Scr Fac Fac Matter Collected 683 | 189 118 . 240 31 105 Remotely . | . . . . . . Salvage Created 451 | . 133 . 139 104 75 Parts 17 | . 6 . 3 2 6 Haulers Intercepted . | . . . . . . Recyclers Shooed . | . . . . . . Parts Field Recycled . | . . . . . . Retrieved Matter . | . . . . . . Parts Self-Destructed . | . . . . . . Prevented . | . . . . . . Parts Restored . | . . . . . . Kills | -11 -10 -10 -7 -5 -4 ------- Run | Yrd Mat Sub Scr Fac Fac Combat Hostiles Destroyed 11 | . 5 . 3 2 1 Guns 6 | . 4 . 1 . 1 Classes Destroyed 6 | . 2 . 3 1 . Swarmer 3 | . 3 . . . . Grunt 2 | . 2 . . . . Sentry 3 | . . . . 2 1 Federalist 1 | . . . 1 . . Ranger 1 | . . . 1 . . Scrapper 1 | . . . 1 . . Best Kill Streak 3 | . 3 . 1 1 1 Combat Bots Only 3 | . 3 . 1 1 1 Max Kills in Single Turn 1 | . 1 . 1 1 1 Gunslinging . | . . . . . . Exploded . | . . . . . . Melee . | . . . . . . Uniques/NPCs Destroyed . | . . . . . . Combat | -11 -10 -10 -7 -5 -4 -------- Run | Yrd Mat Sub Scr Fac Fac Hostile Shots Fired 319 | . 30 . 56 37 196 Missed 108 | . 9 . 13 8 78 Hits 211 | . 21 . 43 29 118 Projectile 211 | . 21 . 43 29 118 Critical Strikes 5 | . . . 3 . 2 Damage Taken 3698 | . 249 . 597 727 2125 Core 1422 | . . . 165 95 1162 Absorbed by Shields . | . . . . . . Redirected to Shielding 27 | . 27 . . . . Ignored by Resistances 147 | . . . . . 147 Core Remaining (%) 74 | 100 . . 34 90 . Volleys Fired 51 | . 18 . 13 12 8 Largest 2 | . 2 . 2 1 2 Hottest 130 | . 90 . 130 . 68 Shots Fired 77 | . 35 . 14 12 16 Gun 51 | . 35 . 4 . 12 Cannon . | . . . . . . Launcher 4 | . . . . . 4 Special 22 | . . . 10 12 . Kinetic 21 | . 9 . . . 12 Thermal 29 | . 26 . 3 . . Explosive 4 | . . . . . 4 Electromagnetic 1 | . . . 1 . . Impact 22 | . . . 10 12 . Robot Hit Streak 17 | . 17 . 2 14 11 Robot Miss Streak 3 | . 3 . 3 . 2 Penetration Max . | . . . . . . Secondary Targets . | . . . . . . Shots Hit Robots 55 | . 25 . 6 12 12 Core Hits 17 | . 7 . 2 2 6 Critical Kills 1 | . . . . . 1 Critical Parts Destroyed 1 | . . . . 1 . Critical Strikes 3 | . . . . 2 1 Destroy 1 | . . . . . 1 Smash 2 | . . . . 2 . Melee Attacks . | . . . . . . Impact . | . . . . . . Slashing . | . . . . . . Piercing . | . . . . . . Sneak Attacks . | . . . . . . Combat Hostiles . | . . . . . . Follow-up Attacks . | . . . . . . Damage Inflicted 1696 | . 306 . 451 798 141 Guns 405 | . 306 . 43 . 56 Cannons . | . . . . . . Explosions 82 | . . . . . 82 Melee . | . . . . . . Ramming 12 | . . . . 9 3 Kinetic 129 | . 73 . . . 56 Thermal 276 | . 233 . 43 . . Explosive 82 | . . . . . 82 Electromagnetic . | . . . . . . Impact 1197 | . . . 408 789 . Slashing . | . . . . . . Piercing . | . . . . . . Highest Corruption 3 | . . . . 2 3 Average Corruption 1 | . . . . 1 1 Corruption Purged . | . . . . . . Corruption Blocked . | . . . . . . Effects 8 | . . . . 7 1 Message Errors 2 | . . . . 2 . Matter Fused 4 | . . . . 4 . Energy Discharges 1 | . . . . 1 . Data Loss (major) 1 | . . . . . 1 Overload Shots . | . . . . . . Overflow Damage 258 | . . . 119 139 . Projectiles 258 | . . . 119 139 . Explosions . | . . . . . . Melee . | . . . . . . Knockbacks 4 | . . . 4 . . Impact 4 | . . . 4 . . Kinetic . | . . . . . . Secondary . | . . . . . . Self-Inflicted Damage 1 | . . . . . 1 Shots . | . . . . . . Rammed 1 | . . . . . 1 Targets Rammed 5 | . . . . 4 1 Kicked 4 | . . . . 4 . Crushed . | . . . . . . Highest Temperature 356 | . 356 . 88 . 48 Average Temperature 127 | . 160 . 39 . 14 Received Heat Transfer 974 | . 117 . 290 90 477 Effects 2 | . 2 . . . . Energy Bleed 1 | . 1 . . . . Interference 1 | . 1 . . . . Siege Activations . | . . . . . . Martial Activations . | . . . . . . Shielding Activations . | . . . . . . Robots Disrupted . | . . . . . . Combat Hostiles . | . . . . . . Robots Corrupted 4 | . . . 2 2 . Combat Hostiles 4 | . . . 2 2 . Parts Fried 3 | . . . 3 . . Impact Corruptions 7 | . . . 4 3 . Robots Melted 1 | . 1 . . . . Combat Hostiles 1 | . 1 . . . . Parts Melted 2 | . 2 . . . . Heat Transferred 717 | . 643 . 74 . . Parts Sabotaged . | . . . . . . Parts Stolen . | . . . . . . Parts Stripped . | . . . . . . Power Chain Reactions . | . . . . . . Alert | -11 -10 -10 -7 -5 -4 ------- Run | Yrd Mat Sub Scr Fac Fac Maximum Alert Level . | . . . . . . Low Security (%) 100 | 100 100 . . 100 100 Level 1 . | . . . . . . Level 2 . | . . . . . . Level 3 . | . . . . . . Level 4 . | . . . . . . Level 5 . | . . . . . . High Security . | . . . . . . Max Security . | . . . . . . Peak Influence 60 | . 60 . . 45 30 Initial . | . . . . . . Average 5 | . 15 . . 3 3 Influence Increases 320 | . 135 . . 75 110 Destroy 0b10 Robot/C 160 | . 100 . . 40 20 Destroy Leader 50 | . 20 . . 20 10 Successful Hack 27 | . . . . . 27 Destroy Structure 38 | . . . . . 38 Lose Combat Pursuer 45 | . 15 . . 15 15 Influence Decreases 320 | . 105 30 . 75 110 Entered New Map 15 | . . 15 . . . Time Decay 272 | . 105 15 . 75 77 Lost Part 33 | . . . . . 33 Squads Dispatched 6 | . 1 . . 1 4 Investigation 2 | . 1 . . . 1 Extermination 3 | . . . . 1 2 Reinforcement 1 | . . . . . 1 Assault . | . . . . . . Garrison . | . . . . . . Intercept . | . . . . . . Searches Triggered . | . . . . . . Construction Impeded . | . . . . . . Haulers Reinforced . | . . . . . . Active Scanning Responses . | . . . . . . Cargo Convoy Interrupts . | . . . . . . Stealth | -11 -10 -10 -7 -5 -4 --------- Run | Yrd Mat Sub Scr Fac Fac Distress Signals . | . . . . . . Communications Jammed 6 | . . . . . 6 Distress Signals . | . . . . . . Times Spotted 44 | . 7 2 15 4 16 Peak Tracking Total 10 | . 3 2 6 2 10 Tactical Retreats 4 | . 1 . . 1 2 ECM-based Alert Blocks 1 | . . . . . 1 Traps | -11 -10 -10 -7 -5 -4 ------- Run | Yrd Mat Sub Scr Fac Fac Traps Triggered 5 | . . . . 3 2 Indirectly . | . . . . . . Trap Hack Attempts . | . . . . . . Triggered . | . . . . . . Disarmed . | . . . . . . Reprogrammed . | . . . . . . Reused . | . . . . . . Traps Extracted . | . . . . . . Installed . | . . . . . . Triggered . | . . . . . . Machines | -11 -10 -10 -7 -5 -4 ---------- Run | Yrd Mat Sub Scr Fac Fac Machines Disabled . | . . . . . . Max in Single Turn . | . . . . . . Machines Repaired . | . . . . . . Machines Dismantled . | . . . . . . Machines Sabotaged . | . . . . . . Overloaded Fab Kills . | . . . . . . Hacking | -11 -10 -10 -7 -5 -4 --------- Run | Yrd Mat Sub Scr Fac Fac Machines Accessed 13 | . 2 . 8 2 1 Terminals 4 | . 2 . . 1 1 Fabricators . | . . . . . . Repair Stations . | . . . . . . Recycling Units 1 | . . . . 1 . Scanalyzers . | . . . . . . Garrison Access . | . . . . . . Total Hacks 63 | . 4 . 52 5 2 Successful 55 | . 1 . 52 1 1 Failed 8 | . 3 . . 4 1 Catastrophic 3 | . 1 . . 2 . Database Lockouts . | . . . . . . Manual 4 | . 2 . . 2 . Terminals 9 | . 4 . . 3 2 Fabricators . | . . . . . . Repair Stations . | . . . . . . Recycling Units 2 | . . . . 2 . Scanalyzers . | . . . . . . Garrison Access . | . . . . . . Terminal Hacks 55 | . 1 . 52 1 1 Record 53 | . 1 . 51 1 . Branch Access Points 1 | . . . . . 1 Proto ID Catalog 1 | . . . 1 . . Fabricator Hacks . | . . . . . . Repair Station Hacks . | . . . . . . Recycling Unit Hacks . | . . . . . . Scanalyzer . | . . . . . . Garrison Access Hacks . | . . . . . . Unauthorized Hacks . | . . . . . . Terminals . | . . . . . . Fabricators . | . . . . . . Repair Stations . | . . . . . . Recycling Units . | . . . . . . Scanalyzers . | . . . . . . Garrison Access . | . . . . . . Data Cores Recovered . | . . . . . . Used . | . . . . . . Hacking Detections 5 | . 2 . . 2 1 Full Trace Events 1 | . 1 . . . . Feedback Events . | . . . . . . Feedback Blocked . | . . . . . . Robot Schematics Acquired . | . . . . . . Robots Built . | . . . . . . Authchips . | . . . . . . Time . | . . . . . . Total Robot Build Rating . | . . . . . . Part Schematics Acquired . | . . . . . . Parts Built . | . . . . . . Authchips . | . . . . . . Time . | . . . . . . Total Part Build Rating . | . . . . . . Part Studies Acquired . | . . . . . . Parts Repaired . | . . . . . . Time . | . . . . . . Parts Recycled . | . . . . . . Recycled Matter . | . . . . . . Retrieved Matter . | . . . . . . Retrieved Components . | . . . . . . Parts Scanalyzed . | . . . . . . Part Schematics Acquired . | . . . . . . Parts Damaged . | . . . . . . Bothacking | -11 -10 -10 -7 -5 -4 ------------ Run | Yrd Mat Sub Scr Fac Fac Used RIF Installer . | . . . . . . Robots Hacked . | . . . . . . Non-combat . | . . . . . . Combat . | . . . . . . Robot Hacks Applied . | . . . . . . Relay Couplers Released . | . . . . . . Fabnet Peak Effective % . | . . . . . . Robots Rewired . | . . . . . . Allies Hacked . | . . . . . . Hacks Repelled . | . . . . . . Allies | -11 -10 -10 -7 -5 -4 -------- Run | Yrd Mat Sub Scr Fac Fac Total Allies . | . . . . . . Largest Group . | . . . . . . Highest-Rated Group . | . . . . . . Highest-Rated Ally . | . . . . . . Initial UFD Resources 40 | . . . . 38 40 Total Orders . | . . . . . . Ally Attacks . | . . . . . . Total Damage . | . . . . . . Kills . | . . . . . . Allies Corrupted . | . . . . . . Allies Melted 1 | . . . 1 . . Intel | -11 -10 -10 -7 -5 -4 ------- Run | Yrd Mat Sub Scr Fac Fac Active Infowar (turns) 2610 | . . . 1252 855 503 Sensors 1381 | . . . 1252 . 129 Terrain 1045 | . . . . 855 190 Jamming 146 | . . . . . 146 ECM 359 | . . . . . 359 Robot Analysis Total . | . . . . . . Derelict Logs Recovered 3 | . . 1 2 . . Drone Launches . | . . . . . . Drone Recoveries . | . . . . . . Exploration | -11 -10 -10 -7 -5 -4 ------------- Run | Yrd Mat Sub Scr Fac Fac Turns Passed 5967 | 94 300 261 3818 857 637 Spaces Moved 4025 | 53 130 141 2799 409 493 Core 275 | 2 . . 2 . 271 Treads 1725 | 51 130 141 1332 . 71 Legs 626 | . . . 73 406 147 Wheels 1392 | . . . 1392 . . Hover 3 | . . . . 3 . Flight 4 | . . . . . 4 Fastest Speed 50 | 50 160 160 100 160 50 Average Speed 136 | 155 160 160 132 189 105 Slowest Speed 500 | 160 160 160 500 240 450 Overloaded Moves . | . . . . . . Propulsion Burnouts . | . . . . . . Robots Hopped . | . . . . . . Potential Cave-ins . | . . . . . . Cave-ins Triggered . | . . . . . . Exploration Rate (%) 26 | 4 24 14 93 8 16 Regions Visited 5 Branch Regions 2 Pre-discovered Areas . | . . . . . . Known Exits Taken 1 | . . . 1 . . Unknown Exits Taken 4 | 1 1 1 . 1 . Scrap Searched 5 | . . . 5 . . Spaces Dug . | . . . . . . Terrain Destroyed 22 | . . . 4 . 18 Melee . | . . . . . . Projectile 4 | . . . 4 . . AOE 17 | . . . . . 17 Terrain Rammed . | . . . . . . Walls Destroyed . | . . . . . . Machines Disabled . | . . . . . . Actions | -11 -10 -10 -7 -5 -4 --------- Run | Yrd Mat Sub Scr Fac Fac Total 4410 | 62 187 182 2909 474 596 Wait 174 | . 36 32 16 27 63 Move 4020 | 52 129 140 2798 408 493 Hop . | . . . . . . Pick Up 41 | 4 2 6 21 6 2 Fast Attach 38 | 6 . . 17 6 9 Attach 19 | . 1 . 5 3 10 Detach 10 | . . . 2 1 7 Swap 7 | . 1 1 4 1 . Drop 44 | . . 3 32 6 3 Fire 51 | . 18 . 13 12 8 Melee . | . . . . . . Ram 1 | . . . . . 1 Kick 4 | . . . . 4 . Crush . | . . . . . . Escape Stasis . | . . . . . . Rewire 1 | . . . 1 . . Trap . | . . . . . . Miscellaneous . | . . . . . . Route ------- -11/Scrapyard -10/Materials (discovered 2 exits: [*Mat] / [*Sub]) -10/Subcaves (discovered 2 exits: Rec / *Scr) -7/Scraptown (discovered 2 exits: *Fac x2) -5/Factory (discovered 2 exits: *Fac / Upp) -4/Factory (discovered 6 exits: [*Res] / Upp x2 / Ext x2 / Arm) History --------- Turn | Location | Event 24 | -11/Scrapyard | Discovered new exit (range 16) 95 | -11/Scrapyard | Entered Materials 96 | -10/Materials | Met a group of wandering Federalists 318 | -10/Materials | Build established: Mutant 378 | -10/Materials | Discovered new exit (range 10) 381 | -10/Materials | Discovered new exit (range 9) 395 | -10/Materials | Entered Subcaves 396 | -10/Subcaves | Continued accompanying wandering Federalists (5) 396 | -10/Subcaves | Approached by a straggling Scientist 529 | -10/Subcaves | Identified exit to Recycling 637 | -10/Subcaves | Wandering Federalist uncovered a shortcut to Scraptown 656 | -10/Subcaves | Entered Scraptown 1223 | -7/Scraptown | Heard Great Nut preacher, LISTEN AND RECITE! 1253 | -7/Scraptown | Visited Comm Corps 1361 | -7/Scraptown | Visited Spacefarers 2270 | -7/Scraptown | Discovered new exit (range 5) 2742 | -7/Scraptown | Visited Awakened 2882 | -7/Scraptown | Visited Bundlers 3029 | -7/Scraptown | Visited CPS Storage 3044 | -7/Scraptown | Visited Cyclists 3079 | -7/Scraptown | Visited UFD Registry 3086 | -7/Scraptown | Visited CR-KLE's Repair Center 3213 | -7/Scraptown | Scanned Subdweller tech in exchange for log data 3216 | -7/Scraptown | Learned 12 Factory zone layouts 3217 | -7/Scraptown | Learned Factory garrison access intel 3420 | -7/Scraptown | Registered with UFD as "Technocutter" 3443 | -7/Scraptown | Visited Science Guys 3487 | -7/Scraptown | Entered Cyclist Reading Room 3589 | -7/Scraptown | Visited LU-1G1's Boring Crew 3652 | -7/Scraptown | Visited Chapter 10 3900 | -7/Scraptown | Visited Scrapoid Pod Storage 3905 | -7/Scraptown | Found Scrapoid Pod 3944 | -7/Scraptown | Met Optimus 3944 | -7/Scraptown | Accepted into 0bPrime 4039 | -7/Scraptown | Visited Abandonware Association 4055 | -7/Scraptown | Learned abandonware demo "TRNCOAT.EXE" 4055 | -7/Scraptown | Learned abandonware demo "KABOOM.EXE" 4077 | -7/Scraptown | Civil war broke out across Scraptown 4130 | -7/Scraptown | Visited Scrap Suit Storage 4136 | -7/Scraptown | Found Scrap Suit 4142 | -7/Scraptown | Found Scrap Suit 4215 | -7/Scraptown | Visited Junk Cannon Lab 4221 | -7/Scraptown | Found Prototype Special Weapon 4221 | -7/Scraptown | Identified Junk Cannon 4225 | -7/Scraptown | Lost 4 parts (1p1n1u1w) 4246 | -7/Scraptown | Lost 3 allies 4258 | -7/Scraptown | Identified exit to Factory 4338 | -7/Scraptown | Visited Infowarlord's Domain 4350 | -7/Scraptown | Found Exp. Terrain Scanner 4396 | -7/Scraptown | Core integrity fell below 50% 4438 | -7/Scraptown | Lost 3 allies 4474 | -7/Scraptown | Entered Factory 4474 | -5/Factory | Evolved 10 slots: Power x1, Propulsion x6, Utility x3 4475 | -5/Factory | Identified exit to Upper Caves 4476 | -5/Factory | Loaded intel: 4 garrison access locations 5311 | -5/Factory | Discovered new exit (range 4) 5331 | -5/Factory | Entered another Factory area 5331 | -4/Factory | Evolved 2 slots: Utility x2 5707 | -4/Factory | Discovered new exit (range 11) 5736 | -4/Factory | Identified exit to Upper Caves 5736 | -4/Factory | Identified exit to Extension 5736 | -4/Factory | Identified exit to Armory 5822 | -4/Factory | Released all parts (2) 5852 | -4/Factory | Lost 12 parts (2p3n6u1w) 5856 | -4/Factory | Found Prototype Device 5856 | -4/Factory | Identified Adv. EM Shield 5870 | -4/Factory | Core integrity fell below 50% 5947 | -4/Factory | Core integrity fell below 20% 5968 | -4/Factory | Destroyed by S-27 Virus with Autogun Last Messages --------------- Acquired 30 matter. K-01 Serf collects debris. Acquired Wheel. Wheel destroyed. R-10 Processor collects Welding Torch. K-01 Serf collects debris. System corrupted: Substantial component data lost. ECM Suite destroyed. K-01 Serf collects debris. Triggered Shock Trap. The floor emits a surge of raw power. System corrupted (+1). K-01 Serf collects debris. Slammed into R-10 Processor. Destabilizing: Core damaged (-11). U-05 Engineer lays Concrete. ALERT: Potential suspicious activity detected, Programmers report to Factory Zone 9Y. [Achievement: 5k Club] Map ----- +----------------------------------------------------+ | ?????????????????????????????? | | ???????????????????????????????? | | ????????????????????????????????? | | ?????????????????????????????????? | | #####???# #??????????????????????????????????? | | #???# #??????????????????????????????????? | | " #???# #??????????????????????????????????? | | " ##### +??????????????????????????????????? | | " / #??????????????????????????????????? | | ##### #??????????????????????????????????? | | #???# #??????????????????????????????????? | | "" #???# #??????????????????????????????????? | | "" #???# #??????????????????????????????????? | | "" #???# #??????????????????????????????????? | | "" #???# #??????????????????????????????????? | | #???# #??????????????????????????????????? | | !#???# #??????????????????????????????????? | | #####???# ##+#???????????????????????????????? | | ????????# ^ #???????????????????????????????? | | ?######## #???????????????????????????????? | | ?# ^+ ????????????????????????? | | ?# # ] ????????????????????????? | | ?# #??####?????????????????????????? | | ?# ##???????#####??????????????????? | | ?# # ######### #??????????????????? | | ####+######/### " p ps s@ #??????????????????? | | #?# ###s ### #??????????????????? | | " """ """ #?#####?# #?#####??????????????????? | | " """ """ #???????# #????????????????????????? | | " """ """ #???????# #????????????????????????? | | #???????# #????????????????????????? | | "" """ """ #???????# #????????????????????????? | | "" """ """ #???????# #????????????????????????? | | "" """ """ #???????# #????????????????????????? | | ????? #???????# #????????????????????????? | | ????? #???????# #????????????????????????? | | ?????########???????# #????????????????????????? | | ????????????????????# #????????????????????????? | | ????????????????????# #????????????????????????? | | ???????????????????? #????????????????????????? | | ????????????????????? ?????????????????????????? | | ????????????????????? ?????????????????????????? | | ?????????????????????????????????????????????????? | | ?????????????????????????????????????????????????? | | ?????????????????????????????????????????????????? | | ?????????????????????????????????????????????????? | | ?????????????????????????????????????????????????? | | ?????????????????????????????????????????????????? | | ?????????????????????????????????????????????????? | | ?????????????????????????????????????????????????? | +----------------------------------------------------+ Best States ------------- Heat Dissipation 43 Energy Generation 25 Energy Capacity 200 Matter Stores 300 Matter Capacity 300 Sight Range 16 Robot Scan Range 16 Terrain Scan Range 30 Terrain Scan Density 10 ECM Strength 2 Jamming Range 16 Resistance: KI 25 Resistance: EM 25 Propulsion Shielding 33 Evasion (%) 60 Targeting Accuracy 8 Recoil Reduction 2 Item Schematics ----------------- None Robot Schematics ------------------ None Fabricated ------------ Nothing Repaired ---------- Nothing Studied --------- None Alien Tech Used ----------------- None Achievements -------------- 5k Club Bob, First Of His Name Civilization 2243 Heavy Suspicion It's Just You Librarian Link The Feds Live, Flee, And Rebuild Made in Tau Ceti IV Power Corrupts Serviceable Loadout Strength In Numbers Uncivil War Universal Adapter Challenges ------------ None Game ------ Seed VariableBombardmentStatue Manual? 0 Play Time 01:33:06 Cumulative 4.9 hours Start 2026.08.13 @ 19:05:37 End 2026.08.13 @ 20:49:43 Sessions 1 Manual Loads 0 Difficulty Rogue Special Mode None Game No. 5 Rogue 5 Adventurer 0 Explorer 0 Win Type - Total 0 Types 0/0/0/0/0/0/0/0/0/0 Lore% 11 Gallery% 6 Achievement% 7 Wizard Run 0 Options --------- Layout 2 ASCII 0 Keyboard 1 Movement Numpad Keybinds 0 Fullscreen 2 Font 16/Terminus Map View 50x49 Zoom Use 0% Tactical HUD 0 Map Filters NONE Filters NONE Steam SD RUN: e3d73cfc-4f83-45c4-8394-f8892e0123bf